Workbook

Sheet UGCA444
B3: ρ(r) = ρ0sech^8( r/ r_c)
A6: M(R) =4πρ0,r_c^3 ·I(u) | C6: u = R/r_c | D6: I(u) = Integrale de 0 à u de ( x^2sech^8(x)dx | H6: V_TURI(R) = Racine (G·M(R)/R)
H8: G= | I8: =4.3009*POWER(10,-6) -> 4.3009e-06 | J8: 10^-6,KPC,(Km/s)^2/Mo
A9: UGCA444 | B9: R_max= | C9: =A50 -> 2.62 | D9: V_obs(R_max)= | E9: =B50 -> 38.3
B10: M_totale= | C10: V_obs^2(R_max).R_max/G= | E10: =E9*E9*C9/I8 -> 893592457.4 | F10: Mo | G10: I(infini)= | H10: 0.0648738184
G11: M(R) = racine(G,M(R)/R)
B12: r_c=R_max= | C12: =C9 -> 2.62 | D12: ρ0=M_tot/4.π.r_c^3.I(infini)= | E12: =E10/(POWER(C12,3)*4*3.14159*H10) -> 60947607.55 | F12: Mo/kpc^3 | G12: π= | H12: 3.14159
A14: R | B14: V_obs | C14: Incer V_obs | D14: u=R/r-c | E14: I(U) par table | F14: M(R) | G14: V_TURI | H14: Erreur % | J14: calculs intermediaires de I(u)
A15: 0.12 | B15: 6.48 | C15: 2.6 | D15: =A15/$C$12 -> 0.04580152672 | E15: =N15*K15+O15*M15 -> 3.370122901e-05 | F15: =4*$H$12*$E$12*POWER($C$12,3)*E15 -> 464211.3689 | G15: =POWER($I$8*F15/A15,0.5) -> 4.078936418 | H15: =ROUND(ABS((B15-G15)/B15)*100,2) -> 37.05 | J15: =INDEX(Integrale!$H$3:$H$502,MATCH(UGCA444!D15,Integrale!$H$3:$H$502,1)) -> 0.04 | K15: =INDEX(Integrale!$I$3:$I$502,MATCH(UGCA444!D15,Integrale!$H$3:$H$502,1)) -> 2.19098e-05 | L15: =INDEX(Integrale!$H$3:$H$502,MATCH(UGCA444!D15,Integrale!$H$3:$H$502,1)+1) -> 0.05 | M15: =INDEX(Integrale!$I$3:$I$502,MATCH(UGCA444!D15,Integrale!$H$3:$H$502,1)+1) -> 4.22345e-05 | N15: =(L15-D15)/(L15-J15) -> 0.4198473282 | O15: =(D15-J15)/(L15-J15) -> 0.5801526718
A16: 0.19 | B16: 8.6 | C16: 2.65 | D16: =A16/$C$12 -> 0.07251908397 | E16: =N16*K16+O16*M16 -> 0.0001280303008 | F16: =4*$H$12*$E$12*POWER($C$12,3)*E16 -> 1763529.786 | G16: =POWER($I$8*F16/A16,0.5) -> 6.318213129 | H16: =ROUND(ABS((B16-G16)/B16)*100,2) -> 26.53 | J16: =INDEX(Integrale!$H$3:$H$502,MATCH(UGCA444!D16,Integrale!$H$3:$H$502,1)) -> 0.07 | K16: =INDEX(Integrale!$I$3:$I$502,MATCH(UGCA444!D16,Integrale!$H$3:$H$502,1)) -> 0.0001141207 | L16: =INDEX(Integrale!$H$3:$H$502,MATCH(UGCA444!D16,Integrale!$H$3:$H$502,1)+1) -> 0.08 | M16: =INDEX(Integrale!$I$3:$I$502,MATCH(UGCA444!D16,Integrale!$H$3:$H$502,1)+1) -> 0.0001693376 | N16: =(L16-D16)/(L16-J16) -> 0.7480916031 | O16: =(D16-J16)/(L16-J16) -> 0.2519083969
A17: 0.26 | B17: 10.2 | C17: 3.03 | D17: 0.09923664122 | E17: 0.0003203328427 | F17: 4412365.715 | G17: 8.543360829 | H17: 16.24 | J17: =INDEX(Integrale!$H$3:$H$502,MATCH(UGCA444!D17,Integrale!$H$3:$H$502,1)) -> 0.09 | K17: =INDEX(Integrale!$I$3:$I$502,MATCH(UGCA444!D17,Integrale!$H$3:$H$502,1)) -> 0.0002397401 | L17: =INDEX(Integrale!$H$3:$H$502,MATCH(UGCA444!D17,Integrale!$H$3:$H$502,1)+1) -> 0.1 | M17: =INDEX(Integrale!$I$3:$I$502,MATCH(UGCA444!D17,Integrale!$H$3:$H$502,1)+1) -> 0.0003269934 | N17: 0.07633587786 | O17: 0.9236641221
A18: 0.33 | B18: 11.7 | C18: 3.55 | D18: 0.1259541985 | E18: 0.0006458189908 | F18: 8895714.686 | G18: 10.76745648 | H18: 7.97 | J18: =INDEX(Integrale!$H$3:$H$502,MATCH(UGCA444!D18,Integrale!$H$3:$H$502,1)) -> 0.12 | K18: =INDEX(Integrale!$I$3:$I$502,MATCH(UGCA444!D18,Integrale!$H$3:$H$502,1)) -> 0.0005583096 | L18: =INDEX(Integrale!$H$3:$H$502,MATCH(UGCA444!D18,Integrale!$H$3:$H$502,1)+1) -> 0.13 | M18: =INDEX(Integrale!$I$3:$I$502,MATCH(UGCA444!D18,Integrale!$H$3:$H$502,1)+1) -> 0.0007052805 | N18: 0.4045801527 | O18: 0.5954198473
A19: 0.4 | B19: 12.7 | C19: 3.75 | D19: 0.1526717557 | E19: 0.00112675334 | F19: 15520256.26 | G19: 12.91811424 | H19: 1.72 | J19: =INDEX(Integrale!$H$3:$H$502,MATCH(UGCA444!D19,Integrale!$H$3:$H$502,1)) -> 0.15 | K19: =INDEX(Integrale!$I$3:$I$502,MATCH(UGCA444!D19,Integrale!$H$3:$H$502,1)) -> 0.0010683906 | L19: =INDEX(Integrale!$H$3:$H$502,MATCH(UGCA444!D19,Integrale!$H$3:$H$502,1)+1) -> 0.16 | M19: =INDEX(Integrale!$I$3:$I$502,MATCH(UGCA444!D19,Integrale!$H$3:$H$502,1)+1) -> 0.001286834 | N19: 0.7328244275 | O19: 0.2671755725
A20: 0.47 | B20: 14.1 | C20: 3.43 | D20: 0.179389313 | E20: 0.001785863454 | F20: 24599047.07 | G20: 15.00340682 | H20: 6.41 | J20: =INDEX(Integrale!$H$3:$H$502,MATCH(UGCA444!D20,Integrale!$H$3:$H$502,1)) -> 0.17 | K20: =INDEX(Integrale!$I$3:$I$502,MATCH(UGCA444!D20,Integrale!$H$3:$H$502,1)) -> 0.001531222 | L20: =INDEX(Integrale!$H$3:$H$502,MATCH(UGCA444!D20,Integrale!$H$3:$H$502,1)+1) -> 0.18 | M20: =INDEX(Integrale!$I$3:$I$502,MATCH(UGCA444!D20,Integrale!$H$3:$H$502,1)+1) -> 0.0018024255 | N20: 0.06106870229 | O20: 0.9389312977
A21: 0.55 | B21: 16 | C21: 3.33 | D21: 0.2099236641 | E21: 0.002781142731 | F21: 38308338.08 | G21: 17.30792416 | H21: 8.17 | J21: =INDEX(Integrale!$H$3:$H$502,MATCH(UGCA444!D21,Integrale!$H$3:$H$502,1)) -> 0.2 | K21: =INDEX(Integrale!$I$3:$I$502,MATCH(UGCA444!D21,Integrale!$H$3:$H$502,1)) -> 0.0024281708 | L21: =INDEX(Integrale!$H$3:$H$502,MATCH(UGCA444!D21,Integrale!$H$3:$H$502,1)+1) -> 0.21 | M21: =INDEX(Integrale!$I$3:$I$502,MATCH(UGCA444!D21,Integrale!$H$3:$H$502,1)+1) -> 0.0027838579 | N21: 0.007633587786 | O21: 0.9923664122
A22: 0.62 | B22: 18.1 | C22: 2.66 | D22: 0.2366412214 | E22: 0.0038774728 | F22: 53409534.59 | G22: 19.24833748 | H22: 6.34 | J22: =INDEX(Integrale!$H$3:$H$502,MATCH(UGCA444!D22,Integrale!$H$3:$H$502,1)) -> 0.23 | K22: =INDEX(Integrale!$I$3:$I$502,MATCH(UGCA444!D22,Integrale!$H$3:$H$502,1)) -> 0.0035828125 | L22: =INDEX(Integrale!$H$3:$H$502,MATCH(UGCA444!D22,Integrale!$H$3:$H$502,1)+1) -> 0.24 | M22: =INDEX(Integrale!$I$3:$I$502,MATCH(UGCA444!D22,Integrale!$H$3:$H$502,1)+1) -> 0.0040264964 | N22: 0.3358778626 | O22: 0.6641221374
A23: 0.69 | B23: 21.2 | C23: 3.78 | D23: 0.2633587786 | E23: 0.005181089353 | F23: 71365960.58 | G23: 21.09117062 | H23: 0.51 | J23: =INDEX(Integrale!$H$3:$H$502,MATCH(UGCA444!D23,Integrale!$H$3:$H$502,1)) -> 0.26 | K23: =INDEX(Integrale!$I$3:$I$502,MATCH(UGCA444!D23,Integrale!$H$3:$H$502,1)) -> 0.0050024204 | L23: =INDEX(Integrale!$H$3:$H$502,MATCH(UGCA444!D23,Integrale!$H$3:$H$502,1)+1) -> 0.27 | M23: =INDEX(Integrale!$I$3:$I$502,MATCH(UGCA444!D23,Integrale!$H$3:$H$502,1)+1) -> 0.0055343666 | N23: 0.6641221374 | O23: 0.3358778626
A24: 0.76 | B24: 21.6 | C24: 3.33 | D24: 0.2900763359 | E24: 0.006689361538 | F24: 92141377.87 | G24: 22.83495854 | H24: 5.72 | J24: =INDEX(Integrale!$H$3:$H$502,MATCH(UGCA444!D24,Integrale!$H$3:$H$502,1)) -> 0.29 | K24: =INDEX(Integrale!$I$3:$I$502,MATCH(UGCA444!D24,Integrale!$H$3:$H$502,1)) -> 0.0066846487 | L24: =INDEX(Integrale!$H$3:$H$502,MATCH(UGCA444!D24,Integrale!$H$3:$H$502,1)+1) -> 0.3 | M24: =INDEX(Integrale!$I$3:$I$502,MATCH(UGCA444!D24,Integrale!$H$3:$H$502,1)+1) -> 0.0073020305 | N24: 0.9923664122 | O24: 0.007633587786
A25: 0.83 | B25: 23.3 | C25: 3.09 | D25: 0.3167938931 | E25: 0.008402888488 | F25: 115744039.1 | G25: 24.4900653 | H25: 5.11 | J25: =INDEX(Integrale!$H$3:$H$502,MATCH(UGCA444!D25,Integrale!$H$3:$H$502,1)) -> 0.31 | K25: =INDEX(Integrale!$I$3:$I$502,MATCH(UGCA444!D25,Integrale!$H$3:$H$502,1)) -> 0.0079467677 | L25: =INDEX(Integrale!$H$3:$H$502,MATCH(UGCA444!D25,Integrale!$H$3:$H$502,1)+1) -> 0.32 | M25: =INDEX(Integrale!$I$3:$I$502,MATCH(UGCA444!D25,Integrale!$H$3:$H$502,1)+1) -> 0.0086181365 | N25: 0.320610687 | O25: 0.679389313
A26: 0.9 | B26: 24.5 | C26: 3.26 | D26: 0.3435114504 | E26: 0.01029940527 | F26: 141867260 | G26: 26.0375135 | H26: 6.28 | J26: =INDEX(Integrale!$H$3:$H$502,MATCH(UGCA444!D26,Integrale!$H$3:$H$502,1)) -> 0.34 | K26: =INDEX(Integrale!$I$3:$I$502,MATCH(UGCA444!D26,Integrale!$H$3:$H$502,1)) -> 0.010037432 | L26: =INDEX(Integrale!$H$3:$H$502,MATCH(UGCA444!D26,Integrale!$H$3:$H$502,1)+1) -> 0.35 | M26: =INDEX(Integrale!$I$3:$I$502,MATCH(UGCA444!D26,Integrale!$H$3:$H$502,1)+1) -> 0.0107834863 | N26: 0.6488549618 | O26: 0.3511450382
A27: 0.97 | B27: 24.4 | C27: 3.29 | D27: 0.3702290076 | E27: 0.01236175849 | F27: 170274764.4 | G27: 27.47697695 | H27: 12.61 | J27: =INDEX(Integrale!$H$3:$H$502,MATCH(UGCA444!D27,Integrale!$H$3:$H$502,1)) -> 0.37 | K27: =INDEX(Integrale!$I$3:$I$502,MATCH(UGCA444!D27,Integrale!$H$3:$H$502,1)) -> 0.0123431779 | L27: =INDEX(Integrale!$H$3:$H$502,MATCH(UGCA444!D27,Integrale!$H$3:$H$502,1)+1) -> 0.38 | M27: =INDEX(Integrale!$I$3:$I$502,MATCH(UGCA444!D27,Integrale!$H$3:$H$502,1)+1) -> 0.0131545302 | N27: 0.9770992366 | O27: 0.02290076336
A28: 1.04 | B28: 25.3 | C28: 2.78 | D28: 0.3969465649 | E28: 0.01457493626 | F28: 200759773.9 | G28: 28.81385403 | H28: 13.89 | J28: =INDEX(Integrale!$H$3:$H$502,MATCH(UGCA444!D28,Integrale!$H$3:$H$502,1)) -> 0.39 | K28: =INDEX(Integrale!$I$3:$I$502,MATCH(UGCA444!D28,Integrale!$H$3:$H$502,1)) -> 0.0139852712 | L28: =INDEX(Integrale!$H$3:$H$502,MATCH(UGCA444!D28,Integrale!$H$3:$H$502,1)+1) -> 0.4 | M28: =INDEX(Integrale!$I$3:$I$502,MATCH(UGCA444!D28,Integrale!$H$3:$H$502,1)+1) -> 0.0148341297 | N28: 0.3053435115 | O28: 0.6946564885
A29: 1.11 | B29: 25.4 | C29: 2.78 | D29: 0.4236641221 | E29: 0.01690894355 | F29: 232909127.1 | G29: 30.04079606 | H29: 18.27 | J29: =INDEX(Integrale!$H$3:$H$502,MATCH(UGCA444!D29,Integrale!$H$3:$H$502,1)) -> 0.42 | K29: =INDEX(Integrale!$I$3:$I$502,MATCH(UGCA444!D29,Integrale!$H$3:$H$502,1)) -> 0.0165809236 | L29: =INDEX(Integrale!$H$3:$H$502,MATCH(UGCA444!D29,Integrale!$H$3:$H$502,1)+1) -> 0.43 | M29: =INDEX(Integrale!$I$3:$I$502,MATCH(UGCA444!D29,Integrale!$H$3:$H$502,1)+1) -> 0.0174761447 | N29: 0.6335877863 | O29: 0.3664122137
A30: 1.19 | B30: 25.9 | C30: 2.73 | D30: 0.4541984733 | E30: 0.01969337119 | F30: 271262712.6 | G30: 31.31131028 | H30: 20.89 | J30: =INDEX(Integrale!$H$3:$H$502,MATCH(UGCA444!D30,Integrale!$H$3:$H$502,1)) -> 0.45 | K30: =INDEX(Integrale!$I$3:$I$502,MATCH(UGCA444!D30,Integrale!$H$3:$H$502,1)) -> 0.0193032886 | L30: =INDEX(Integrale!$H$3:$H$502,MATCH(UGCA444!D30,Integrale!$H$3:$H$502,1)+1) -> 0.46 | M30: =INDEX(Integrale!$I$3:$I$502,MATCH(UGCA444!D30,Integrale!$H$3:$H$502,1)+1) -> 0.0202323944 | N30: 0.5801526718 | O30: 0.4198473282
A31: 1.26 | B31: 26.7 | C31: 2.67 | D31: 0.4809160305 | E31: 0.02220165708 | F31: 305812634.4 | G31: 32.30889552 | H31: 21.01 | J31: =INDEX(Integrale!$H$3:$H$502,MATCH(UGCA444!D31,Integrale!$H$3:$H$502,1)) -> 0.48 | K31: =INDEX(Integrale!$I$3:$I$502,MATCH(UGCA444!D31,Integrale!$H$3:$H$502,1)) -> 0.0221146072 | L31: =INDEX(Integrale!$H$3:$H$502,MATCH(UGCA444!D31,Integrale!$H$3:$H$502,1)+1) -> 0.49 | M31: =INDEX(Integrale!$I$3:$I$502,MATCH(UGCA444!D31,Integrale!$H$3:$H$502,1)+1) -> 0.0230649017 | N31: 0.9083969466 | O31: 0.09160305344
A32: 1.33 | B32: 27.1 | C32: 3.16 | D32: 0.5076335878 | E32: 0.02475035812 | F32: 340919247.2 | G32: 33.20317485 | H32: 22.52 | J32: =INDEX(Integrale!$H$3:$H$502,MATCH(UGCA444!D32,Integrale!$H$3:$H$502,1)) -> 0.5 | K32: =INDEX(Integrale!$I$3:$I$502,MATCH(UGCA444!D32,Integrale!$H$3:$H$502,1)) -> 0.0240194669 | L32: =INDEX(Integrale!$H$3:$H$502,MATCH(UGCA444!D32,Integrale!$H$3:$H$502,1)+1) -> 0.51 | M32: =INDEX(Integrale!$I$3:$I$502,MATCH(UGCA444!D32,Integrale!$H$3:$H$502,1)+1) -> 0.0249769344 | N32: 0.2366412214 | O32: 0.7633587786
A33: 1.4 | B33: 28.6 | C33: 3.34 | D33: 0.534351145 | E33: 0.02731216188 | F33: 376206341 | G33: 33.99606965 | H33: 18.87 | J33: =INDEX(Integrale!$H$3:$H$502,MATCH(UGCA444!D33,Integrale!$H$3:$H$502,1)) -> 0.53 | K33: =INDEX(Integrale!$I$3:$I$502,MATCH(UGCA444!D33,Integrale!$H$3:$H$502,1)) -> 0.0268952255 | L33: =INDEX(Integrale!$H$3:$H$502,MATCH(UGCA444!D33,Integrale!$H$3:$H$502,1)+1) -> 0.54 | M33: =INDEX(Integrale!$I$3:$I$502,MATCH(UGCA444!D33,Integrale!$H$3:$H$502,1)+1) -> 0.0278534477 | N33: 0.5648854962 | O33: 0.4351145038
A34: 1.48 | B34: 28.9 | C34: 3.21 | D34: 0.5648854962 | E34: 0.03022482661 | F34: 416326304.7 | G34: 34.78289619 | H34: 20.36 | J34: =INDEX(Integrale!$H$3:$H$502,MATCH(UGCA444!D34,Integrale!$H$3:$H$502,1)) -> 0.56 | K34: =INDEX(Integrale!$I$3:$I$502,MATCH(UGCA444!D34,Integrale!$H$3:$H$502,1)) -> 0.0297618021 | L34: =INDEX(Integrale!$H$3:$H$502,MATCH(UGCA444!D34,Integrale!$H$3:$H$502,1)+1) -> 0.57 | M34: =INDEX(Integrale!$I$3:$I$502,MATCH(UGCA444!D34,Integrale!$H$3:$H$502,1)+1) -> 0.0307095554 | N34: 0.5114503817 | O34: 0.4885496183
A35: 1.55 | B35: 30.4 | C35: 4.14 | D35: 0.5916030534 | E35: 0.03273522802 | F35: 450905366.3 | G35: 35.37174825 | H35: 16.35 | J35: =INDEX(Integrale!$H$3:$H$502,MATCH(UGCA444!D35,Integrale!$H$3:$H$502,1)) -> 0.59 | K35: =INDEX(Integrale!$I$3:$I$502,MATCH(UGCA444!D35,Integrale!$H$3:$H$502,1)) -> 0.0325865959 | L35: =INDEX(Integrale!$H$3:$H$502,MATCH(UGCA444!D35,Integrale!$H$3:$H$502,1)+1) -> 0.6 | M35: =INDEX(Integrale!$I$3:$I$502,MATCH(UGCA444!D35,Integrale!$H$3:$H$502,1)+1) -> 0.0335137772 | N35: 0.8396946565 | O35: 0.1603053435
A36: 1.62 | B36: 30.8 | C36: 4.35 | D36: 0.6183206107 | E36: 0.03518800129 | F36: 484690639.7 | G36: 35.87190837 | H36: 16.47 | J36: =INDEX(Integrale!$H$3:$H$502,MATCH(UGCA444!D36,Integrale!$H$3:$H$502,1)) -> 0.61 | K36: =INDEX(Integrale!$I$3:$I$502,MATCH(UGCA444!D36,Integrale!$H$3:$H$502,1)) -> 0.0344320783 | L36: =INDEX(Integrale!$H$3:$H$502,MATCH(UGCA444!D36,Integrale!$H$3:$H$502,1)+1) -> 0.62 | M36: =INDEX(Integrale!$I$3:$I$502,MATCH(UGCA444!D36,Integrale!$H$3:$H$502,1)+1) -> 0.0353405729 | N36: 0.1679389313 | O36: 0.8320610687
A37: 1.69 | B37: 30.5 | C37: 4.56 | D37: 0.6450381679 | E37: 0.03756506422 | F37: 517433055.1 | G37: 36.28803107 | H37: 18.98 | J37: =INDEX(Integrale!$H$3:$H$502,MATCH(UGCA444!D37,Integrale!$H$3:$H$502,1)) -> 0.64 | K37: =INDEX(Integrale!$I$3:$I$502,MATCH(UGCA444!D37,Integrale!$H$3:$H$502,1)) -> 0.037124703 | L37: =INDEX(Integrale!$H$3:$H$502,MATCH(UGCA444!D37,Integrale!$H$3:$H$502,1)+1) -> 0.65 | M37: =INDEX(Integrale!$I$3:$I$502,MATCH(UGCA444!D37,Integrale!$H$3:$H$502,1)+1) -> 0.0379987533 | N37: 0.4961832061 | O37: 0.5038167939
A38: 1.75 | B38: 33 | C38: 4.04 | D38: 0.6679389313 | E38: 0.03953260574 | F38: 544534593.2 | G38: 36.58250036 | H38: 10.86 | J38: =INDEX(Integrale!$H$3:$H$502,MATCH(UGCA444!D38,Integrale!$H$3:$H$502,1)) -> 0.66 | K38: =INDEX(Integrale!$I$3:$I$502,MATCH(UGCA444!D38,Integrale!$H$3:$H$502,1)) -> 0.0388598276 | L38: =INDEX(Integrale!$H$3:$H$502,MATCH(UGCA444!D38,Integrale!$H$3:$H$502,1)+1) -> 0.67 | M38: =INDEX(Integrale!$I$3:$I$502,MATCH(UGCA444!D38,Integrale!$H$3:$H$502,1)+1) -> 0.0397072693 | N38: 0.2061068702 | O38: 0.7938931298
A39: 1.83 | B39: 32.1 | C39: 4.35 | D39: 0.6984732824 | E39: 0.04203942553 | F39: 579064320.4 | G39: 36.89075391 | H39: 14.92 | J39: =INDEX(Integrale!$H$3:$H$502,MATCH(UGCA444!D39,Integrale!$H$3:$H$502,1)) -> 0.69 | K39: =INDEX(Integrale!$I$3:$I$502,MATCH(UGCA444!D39,Integrale!$H$3:$H$502,1)) -> 0.0413588991 | L39: =INDEX(Integrale!$H$3:$H$502,MATCH(UGCA444!D39,Integrale!$H$3:$H$502,1)+1) -> 0.7 | M39: =INDEX(Integrale!$I$3:$I$502,MATCH(UGCA444!D39,Integrale!$H$3:$H$502,1)+1) -> 0.0421620429 | N39: 0.1526717557 | O39: 0.8473282443
A40: 1.9 | B40: 32.9 | C40: 4.36 | D40: 0.7251908397 | E40: 0.04411260077 | F40: 607620890.8 | G40: 37.0867879 | H40: 12.73 | J40: =INDEX(Integrale!$H$3:$H$502,MATCH(UGCA444!D40,Integrale!$H$3:$H$502,1)) -> 0.72 | K40: =INDEX(Integrale!$I$3:$I$502,MATCH(UGCA444!D40,Integrale!$H$3:$H$502,1)) -> 0.0437207705 | L40: =INDEX(Integrale!$H$3:$H$502,MATCH(UGCA444!D40,Integrale!$H$3:$H$502,1)+1) -> 0.73 | M40: =INDEX(Integrale!$I$3:$I$502,MATCH(UGCA444!D40,Integrale!$H$3:$H$502,1)+1) -> 0.04447562 | N40: 0.4809160305 | O40: 0.5190839695
A41: 1.97 | B41: 34.2 | C41: 4.9 | D41: 0.7519083969 | E41: 0.0460691542 | F41: 634571075.4 | G41: 37.22088504 | H41: 8.83 | J41: =INDEX(Integrale!$H$3:$H$502,MATCH(UGCA444!D41,Integrale!$H$3:$H$502,1)) -> 0.75 | K41: =INDEX(Integrale!$I$3:$I$502,MATCH(UGCA444!D41,Integrale!$H$3:$H$502,1)) -> 0.0459348212 | L41: =INDEX(Integrale!$H$3:$H$502,MATCH(UGCA444!D41,Integrale!$H$3:$H$502,1)+1) -> 0.76 | M41: =INDEX(Integrale!$I$3:$I$502,MATCH(UGCA444!D41,Integrale!$H$3:$H$502,1)+1) -> 0.0466387261 | N41: 0.8091603053 | O41: 0.1908396947
A42: 2.04 | B42: 32.6 | C42: 3.98 | D42: 0.7786259542 | E42: 0.04790242486 | F42: 659823124.3 | G42: 37.29738252 | H42: 14.41 | J42: =INDEX(Integrale!$H$3:$H$502,MATCH(UGCA444!D42,Integrale!$H$3:$H$502,1)) -> 0.77 | K42: =INDEX(Integrale!$I$3:$I$502,MATCH(UGCA444!D42,Integrale!$H$3:$H$502,1)) -> 0.0473252771 | L42: =INDEX(Integrale!$H$3:$H$502,MATCH(UGCA444!D42,Integrale!$H$3:$H$502,1)+1) -> 0.78 | M42: =INDEX(Integrale!$I$3:$I$502,MATCH(UGCA444!D42,Integrale!$H$3:$H$502,1)+1) -> 0.0479943599 | N42: 0.1374045802 | O42: 0.8625954198
A43: 2.11 | B43: 33.7 | C43: 4.73 | D43: 0.8053435115 | E43: 0.04960923162 | F43: 683333219.6 | G43: 37.32112373 | H43: 10.75 | J43: =INDEX(Integrale!$H$3:$H$502,MATCH(UGCA444!D43,Integrale!$H$3:$H$502,1)) -> 0.8 | K43: =INDEX(Integrale!$I$3:$I$502,MATCH(UGCA444!D43,Integrale!$H$3:$H$502,1)) -> 0.0492798642 | L43: =INDEX(Integrale!$H$3:$H$502,MATCH(UGCA444!D43,Integrale!$H$3:$H$502,1)+1) -> 0.81 | M43: =INDEX(Integrale!$I$3:$I$502,MATCH(UGCA444!D43,Integrale!$H$3:$H$502,1)+1) -> 0.0498962518 | N43: 0.465648855 | O43: 0.534351145
A44: 2.19 | B44: 33.8 | C44: 4.67 | D44: 0.8358778626 | E44: 0.05140799253 | F44: 708109920.3 | G44: 37.291337 | H44: 10.33 | J44: =INDEX(Integrale!$H$3:$H$502,MATCH(UGCA444!D44,Integrale!$H$3:$H$502,1)) -> 0.83 | K44: =INDEX(Integrale!$I$3:$I$502,MATCH(UGCA444!D44,Integrale!$H$3:$H$502,1)) -> 0.0510764772 | L44: =INDEX(Integrale!$H$3:$H$502,MATCH(UGCA444!D44,Integrale!$H$3:$H$502,1)+1) -> 0.84 | M44: =INDEX(Integrale!$I$3:$I$502,MATCH(UGCA444!D44,Integrale!$H$3:$H$502,1)+1) -> 0.0516404838 | N44: 0.4122137405 | O44: 0.5877862595
A45: 2.26 | B45: 34.9 | C45: 3.74 | D45: 0.8625954198 | E45: 0.05285001272 | F45: 727972761.6 | G45: 37.22056983 | H45: 6.65 | J45: =INDEX(Integrale!$H$3:$H$502,MATCH(UGCA444!D45,Integrale!$H$3:$H$502,1)) -> 0.86 | K45: =INDEX(Integrale!$I$3:$I$502,MATCH(UGCA444!D45,Integrale!$H$3:$H$502,1)) -> 0.0527169267 | L45: =INDEX(Integrale!$H$3:$H$502,MATCH(UGCA444!D45,Integrale!$H$3:$H$502,1)+1) -> 0.87 | M45: =INDEX(Integrale!$I$3:$I$502,MATCH(UGCA444!D45,Integrale!$H$3:$H$502,1)+1) -> 0.0532296993 | N45: 0.7404580153 | O45: 0.2595419847
A46: 2.33 | B46: 36.1 | C46: 5.47 | D46: 0.8893129771 | E46: 0.05417241489 | F46: 746187946.7 | G46: 37.11297993 | H46: 2.81 | J46: =INDEX(Integrale!$H$3:$H$502,MATCH(UGCA444!D46,Integrale!$H$3:$H$502,1)) -> 0.88 | K46: =INDEX(Integrale!$I$3:$I$502,MATCH(UGCA444!D46,Integrale!$H$3:$H$502,1)) -> 0.0537257701 | L46: =INDEX(Integrale!$H$3:$H$502,MATCH(UGCA444!D46,Integrale!$H$3:$H$502,1)+1) -> 0.89 | M46: =INDEX(Integrale!$I$3:$I$502,MATCH(UGCA444!D46,Integrale!$H$3:$H$502,1)+1) -> 0.0542053641 | N46: 0.06870229008 | O46: 0.9312977099
A47: 2.4 | B47: 37.2 | C47: 5.39 | D47: 0.9160305344 | E47: 0.0553764544 | F47: 762772767.1 | G47: 36.97188906 | H47: 0.61 | J47: =INDEX(Integrale!$H$3:$H$502,MATCH(UGCA444!D47,Integrale!$H$3:$H$502,1)) -> 0.91 | K47: =INDEX(Integrale!$I$3:$I$502,MATCH(UGCA444!D47,Integrale!$H$3:$H$502,1)) -> 0.0551161169 | L47: =INDEX(Integrale!$H$3:$H$502,MATCH(UGCA444!D47,Integrale!$H$3:$H$502,1)+1) -> 0.92 | M47: =INDEX(Integrale!$I$3:$I$502,MATCH(UGCA444!D47,Integrale!$H$3:$H$502,1)+1) -> 0.0555478158 | N47: 0.3969465649 | O47: 0.6030534351
A48: 2.48 | B48: 37.6 | C48: 7.1 | D48: 0.9465648855 | E48: 0.05661900053 | F48: 779887989.8 | G48: 36.77646214 | H48: 2.19 | J48: =INDEX(Integrale!$H$3:$H$502,MATCH(UGCA444!D48,Integrale!$H$3:$H$502,1)) -> 0.94 | K48: =INDEX(Integrale!$I$3:$I$502,MATCH(UGCA444!D48,Integrale!$H$3:$H$502,1)) -> 0.0563653178 | L48: =INDEX(Integrale!$H$3:$H$502,MATCH(UGCA444!D48,Integrale!$H$3:$H$502,1)+1) -> 0.95 | M48: =INDEX(Integrale!$I$3:$I$502,MATCH(UGCA444!D48,Integrale!$H$3:$H$502,1)+1) -> 0.0567517415 | N48: 0.3435114504 | O48: 0.6564885496
A49: 2.55 | B49: 35.6 | C49: 4.73 | D49: 0.9732824427 | E49: 0.05759449775 | F49: 793324796.5 | G49: 36.57927527 | H49: 2.75 | J49: =INDEX(Integrale!$H$3:$H$502,MATCH(UGCA444!D49,Integrale!$H$3:$H$502,1)) -> 0.97 | K49: =INDEX(Integrale!$I$3:$I$502,MATCH(UGCA444!D49,Integrale!$H$3:$H$502,1)) -> 0.0574815594 | L49: =INDEX(Integrale!$H$3:$H$502,MATCH(UGCA444!D49,Integrale!$H$3:$H$502,1)+1) -> 0.98 | M49: =INDEX(Integrale!$I$3:$I$502,MATCH(UGCA444!D49,Integrale!$H$3:$H$502,1)+1) -> 0.0578256274 | N49: 0.6717557252 | O49: 0.3282442748
A50: 2.62 | B50: 38.3 | C50: 7.78 | D50: 1 | E50: 0.0584738086 | F50: 805436701.7 | G50: 36.36174648 | H50: 5.06 | J50: =INDEX(Integrale!$H$3:$H$502,MATCH(UGCA444!D50,Integrale!$H$3:$H$502,1)) -> 1 | K50: =INDEX(Integrale!$I$3:$I$502,MATCH(UGCA444!D50,Integrale!$H$3:$H$502,1)) -> 0.0584738086 | L50: =INDEX(Integrale!$H$3:$H$502,MATCH(UGCA444!D50,Integrale!$H$3:$H$502,1)+1) -> 1.01 | M50: =INDEX(Integrale!$I$3:$I$502,MATCH(UGCA444!D50,Integrale!$H$3:$H$502,1)+1) -> 0.0587786248 | N50: 1 | O50: 0
G51: Erreur moy | H51: =ROUND(AVERAGE(H15:H50),2) -> 11.98
B52: Précision= | C52: =ROUND(MAX(0,100-H51),2) -> 88.02 | D52: %
A54: R | B54: V_Obs | C54: Incer V_Obs | D54: V_TURI | E54: A=(V_obs-V_TURI)^2 | F54: A/Incer V_Obs^2
A55: =A15 -> 0.12 | B55: =B15 -> 6.48 | C55: =C15 -> 2.6 | D55: =G15 -> 4.078936418 | E55: =ROUND(POWER((B55-D55),2),2) -> 5.77 | F55: =ROUND(E55/POWER(C55,2),2) -> 0.85
A56: =A16 -> 0.19 | B56: 8.6 | C56: 2.65 | D56: =G16 -> 6.318213129 | E56: =ROUND(POWER((B56-D56),2),2) -> 5.21 | F56: =ROUND(E56/POWER(C56,2),2) -> 0.74
A57: =A17 -> 0.26 | B57: 10.2 | C57: 3.03 | D57: 8.543360829 | E57: 2.74 | F57: 0.3
A58: =A18 -> 0.33 | B58: 11.7 | C58: 3.55 | D58: 10.76745648 | E58: 0.87 | F58: 0.07
A59: =A19 -> 0.4 | B59: 12.7 | C59: 3.75 | D59: 12.91811424 | E59: 0.05 | F59: 0
A60: =A20 -> 0.47 | B60: 14.1 | C60: 3.43 | D60: 15.00340682 | E60: 0.82 | F60: 0.07
A61: =A21 -> 0.55 | B61: 16 | C61: 3.33 | D61: 17.30792416 | E61: 1.71 | F61: 0.15
A62: =A22 -> 0.62 | B62: 18.1 | C62: 2.66 | D62: 19.24833748 | E62: 1.32 | F62: 0.19
A63: =A23 -> 0.69 | B63: 21.2 | C63: 3.78 | D63: 21.09117062 | E63: 0.01 | F63: 0
A64: =A24 -> 0.76 | B64: 21.6 | C64: 3.33 | D64: 22.83495854 | E64: 1.53 | F64: 0.14
A65: =A25 -> 0.83 | B65: 23.3 | C65: 3.09 | D65: 24.4900653 | E65: 1.42 | F65: 0.15
A66: =A26 -> 0.9 | B66: 24.5 | C66: 3.26 | D66: 26.0375135 | E66: 2.36 | F66: 0.22
A67: =A27 -> 0.97 | B67: 24.4 | C67: 3.29 | D67: 27.47697695 | E67: 9.47 | F67: 0.87
A68: =A28 -> 1.04 | B68: 25.3 | C68: 2.78 | D68: 28.81385403 | E68: 12.35 | F68: 1.6
A69: =A29 -> 1.11 | B69: 25.4 | C69: 2.78 | D69: 30.04079606 | E69: 21.54 | F69: 2.79
A70: =A30 -> 1.19 | B70: 25.9 | C70: 2.73 | D70: 31.31131028 | E70: 29.28 | F70: 3.93
A71: =A31 -> 1.26 | B71: 26.7 | C71: 2.67 | D71: 32.30889552 | E71: 31.46 | F71: 4.41
A72: =A32 -> 1.33 | B72: 27.1 | C72: 3.16 | D72: 33.20317485 | E72: 37.25 | F72: 3.73
A73: =A33 -> 1.4 | B73: 28.6 | C73: 3.34 | D73: 33.99606965 | E73: 29.12 | F73: 2.61
A74: =A34 -> 1.48 | B74: 28.9 | C74: 3.21 | D74: 34.78289619 | E74: 34.61 | F74: 3.36
A75: =A35 -> 1.55 | B75: 30.4 | C75: 4.14 | D75: 35.37174825 | E75: 24.72 | F75: 1.44
A76: =A36 -> 1.62 | B76: 30.8 | C76: 4.35 | D76: 35.87190837 | E76: 25.72 | F76: 1.36
A77: =A37 -> 1.69 | B77: 30.5 | C77: 4.56 | D77: 36.28803107 | E77: 33.5 | F77: 1.61
A78: =A38 -> 1.75 | B78: 33 | C78: 4.04 | D78: 36.58250036 | E78: 12.83 | F78: 0.79
A79: =A39 -> 1.83 | B79: 32.1 | C79: 4.35 | D79: 36.89075391 | E79: 22.95 | F79: 1.21
A80: =A40 -> 1.9 | B80: 32.9 | C80: 4.36 | D80: 37.0867879 | E80: 17.53 | F80: 0.92
A81: =A41 -> 1.97 | B81: 34.2 | C81: 4.9 | D81: 37.22088504 | E81: 9.13 | F81: 0.38
A82: =A42 -> 2.04 | B82: 32.6 | C82: 3.98 | D82: 37.29738252 | E82: 22.07 | F82: 1.39
A83: =A43 -> 2.11 | B83: 33.7 | C83: 4.73 | D83: 37.32112373 | E83: 13.11 | F83: 0.59
A84: =A44 -> 2.19 | B84: 33.8 | C84: 4.67 | D84: 37.291337 | E84: 12.19 | F84: 0.56
A85: =A45 -> 2.26 | B85: =B45 -> 34.9 | C85: =C45 -> 3.74 | D85: 37.22056983 | E85: =ROUND(POWER((B85-D85),2),2) -> 5.39 | F85: =ROUND(E85/POWER(C85,2),2) -> 0.39
A86: =A46 -> 2.33 | B86: 36.1 | C86: 5.47 | D86: =G46 -> 37.11297993 | E86: =ROUND(POWER((B86-D86),2),2) -> 1.03 | F86: =ROUND(E86/POWER(C86,2),2) -> 0.03
A87: =A47 -> 2.4 | B87: 37.2 | C87: 5.39 | D87: 36.97188906 | E87: 0.05 | F87: 0
A88: =A48 -> 2.48 | B88: 37.6 | C88: 7.1 | D88: 36.77646214 | E88: 0.68 | F88: 0.01
A89: =A49 -> 2.55 | B89: 35.6 | C89: 4.73 | D89: 36.57927527 | E89: 0.96 | F89: 0.04
A90: =A50 -> 2.62 | B90: 38.3 | C90: 7.78 | D90: 36.36174648 | E90: 3.76 | F90: 0.06
E91: X^2/d_f= | F91: =ROUND(SUM(F55:F90)/(COUNT(F55:F90)),2) -> 1.03

Sheet Integrale
H1: u | I1: I(u) = Integrale de 0 à u de ( x^2sech^8(x)dx
H2: 0 | I2: 0
H3: 0.01 | I3: 4.998e-07
H4: 0.02 | I4: 2.9964e-06
H5: 0.03 | I5: 9.477e-06
H6: 0.04 | I6: 2.19098e-05
H7: 0.05 | I7: 4.22345e-05
H8: 0.06 | I8: 7.2353e-05
H9: 0.07 | I9: 0.0001141207
H10: 0.08 | I10: 0.0001693376
H11: 0.09 | I11: 0.0002397401
H12: 0.1 | I12: 0.0003269934
H13: 0.11 | I13: 0.0004326832
H14: 0.12 | I14: 0.0005583096
H15: 0.13 | I15: 0.0007052805
H16: 0.14 | I16: 0.0008749055
H17: 0.15 | I17: 0.0010683906
H18: 0.16 | I18: 0.001286834
H19: 0.17 | I19: 0.001531222
H20: 0.18 | I20: 0.0018024255
H21: 0.19 | I21: 0.0021011974
H22: 0.2 | I22: 0.0024281708
H23: 0.21 | I23: 0.0027838579
H24: 0.22 | I24: 0.0031686489
H25: 0.23 | I25: 0.0035828125
H26: 0.24 | I26: 0.0040264964
H27: 0.25 | I27: 0.0044997288
H28: 0.26 | I28: 0.0050024204
H29: 0.27 | I29: 0.0055343666
H30: 0.28 | I30: 0.006095251
H31: 0.29 | I31: 0.0066846487
H32: 0.3 | I32: 0.0073020305
H33: 0.31 | I33: 0.0079467677
H34: 0.32 | I34: 0.0086181365
H35: 0.33 | I35: 0.0093153237
H36: 0.34 | I36: 0.010037432
H37: 0.35 | I37: 0.0107834863
H38: 0.36 | I38: 0.0115524392
H39: 0.37 | I39: 0.0123431779
H40: 0.38 | I40: 0.0131545302
H41: 0.39 | I41: 0.0139852712
H42: 0.4 | I42: 0.0148341297
H43: 0.41 | I43: 0.0156997951
H44: 0.42 | I44: 0.0165809236
H45: 0.43 | I45: 0.0174761447
H46: 0.44 | I46: 0.0183840679
H47: 0.45 | I47: 0.0193032886
H48: 0.46 | I48: 0.0202323944
H49: 0.47 | I49: 0.0211699709
H50: 0.48 | I50: 0.0221146072
H51: 0.49 | I51: 0.0230649017
H52: 0.5 | I52: 0.0240194669
H53: 0.51 | I53: 0.0249769344
H54: 0.52 | I54: 0.0259359595
H55: 0.53 | I55: 0.0268952255
H56: 0.54 | I56: 0.0278534477
H57: 0.55 | I57: 0.0288093767
H58: 0.56 | I58: 0.0297618021
H59: 0.57 | I59: 0.0307095554
H60: 0.58 | I60: 0.0316515125
H61: 0.59 | I61: 0.0325865959
H62: 0.6 | I62: 0.0335137772
H63: 0.61 | I63: 0.0344320783
H64: 0.62 | I64: 0.0353405729
H65: 0.63 | I65: 0.0362383877
H66: 0.64 | I66: 0.037124703
H67: 0.65 | I67: 0.0379987533
H68: 0.66 | I68: 0.0388598276
H69: 0.67 | I69: 0.0397072693
H70: 0.68 | I70: 0.040540476
H71: 0.69 | I71: 0.0413588991
H72: 0.7 | I72: 0.0421620429
H73: 0.71 | I73: 0.0429494641
H74: 0.72 | I74: 0.0437207705
H75: 0.73 | I75: 0.04447562
H76: 0.74 | I76: 0.0452137189
H77: 0.75 | I77: 0.0459348212
H78: 0.76 | I78: 0.0466387261
H79: 0.77 | I79: 0.0473252771
H80: 0.78 | I80: 0.0479943599
H81: 0.79 | I81: 0.0486459007
H82: 0.8 | I82: 0.0492798642
H83: 0.81 | I83: 0.0498962518
H84: 0.82 | I84: 0.0504950998
H85: 0.83 | I85: 0.0510764772
H86: 0.84 | I86: 0.0516404838
H87: 0.85 | I87: 0.0521872484
H88: 0.86 | I88: 0.0527169267
H89: 0.87 | I89: 0.0532296993
H90: 0.88 | I90: 0.0537257701
H91: 0.89 | I91: 0.0542053641
H92: 0.9 | I92: 0.0546687257
H93: 0.91 | I93: 0.0551161169
H94: 0.92 | I94: 0.0555478158
H95: 0.93 | I95: 0.0559641145
H96: 0.94 | I96: 0.0563653178
H97: 0.95 | I97: 0.0567517415
H98: 0.96 | I98: 0.0571237109
H99: 0.97 | I99: 0.0574815594
H100: 0.98 | I100: 0.0578256274
H101: 0.99 | I101: 0.0581562605
H102: 1 | I102: 0.0584738086
H103: 1.01 | I103: 0.0587786248
H104: 1.02 | I104: 0.059071064
H105: 1.03 | I105: 0.0593514822
H106: 1.04 | I106: 0.0596202355
H107: 1.05 | I107: 0.0598776791
H108: 1.06 | I108: 0.0601241663
H109: 1.07 | I109: 0.0603600483
H110: 1.08 | I110: 0.060585673
H111: 1.09 | I111: 0.0608013846
H112: 1.1 | I112: 0.0610075229
H113: 1.11 | I113: 0.0612044228
H114: 1.12 | I114: 0.0613924139
H115: 1.13 | I115: 0.0615718202
H116: 1.14 | I116: 0.0617429593
H117: 1.15 | I117: 0.0619061425
H118: 1.16 | I118: 0.0620616744
H119: 1.17 | I119: 0.0622098525
H120: 1.18 | I120: 0.0623509673
H121: 1.19 | I121: 0.0624853017
H122: 1.2 | I122: 0.0626131314
H123: 1.21 | I123: 0.0627347243
H124: 1.22 | I124: 0.0628503409
H125: 1.23 | I125: 0.0629602337
H126: 1.24 | I126: 0.0630646479
H127: 1.25 | I127: 0.0631638207
H128: 1.26 | I128: 0.0632579818
H129: 1.27 | I129: 0.0633473531
H130: 1.28 | I130: 0.0634321492
H131: 1.29 | I131: 0.0635125771
H132: 1.3 | I132: 0.0635888365
H133: 1.31 | I133: 0.0636611197
H134: 1.32 | I134: 0.0637296121
H135: 1.33 | I135: 0.0637944919
H136: 1.34 | I136: 0.0638559305
H137: 1.35 | I137: 0.0639140927
H138: 1.36 | I138: 0.0639691366
H139: 1.37 | I139: 0.064021214
H140: 1.38 | I140: 0.0640704704
H141: 1.39 | I141: 0.0641170452
H142: 1.4 | I142: 0.064161072
H143: 1.41 | I143: 0.0642026787
H144: 1.42 | I144: 0.0642419876
H145: 1.43 | I145: 0.0642791157
H146: 1.44 | I146: 0.0643141746
H147: 1.45 | I147: 0.064347271
H148: 1.46 | I148: 0.064378507
H149: 1.47 | I149: 0.0644079795
H150: 1.48 | I150: 0.0644357814
H151: 1.49 | I151: 0.0644620009
H152: 1.5 | I152: 0.0644867222
H153: 1.51 | I153: 0.0645100253
H154: 1.52 | I154: 0.0645319867
H155: 1.53 | I155: 0.0645526787
H156: 1.54 | I156: 0.0645721705
H157: 1.55 | I157: 0.0645905275
H158: 1.56 | I158: 0.0646078121
H159: 1.57 | I159: 0.0646240835
H160: 1.58 | I160: 0.0646393978
H161: 1.59 | I161: 0.0646538084
H162: 1.6 | I162: 0.0646673658
H163: 1.61 | I163: 0.064680118
H164: 1.62 | I164: 0.0646921104
H165: 1.63 | I165: 0.0647033862
H166: 1.64 | I166: 0.0647139861
H167: 1.65 | I167: 0.0647239487
H168: 1.66 | I168: 0.0647333107
H169: 1.67 | I169: 0.0647421067
H170: 1.68 | I170: 0.0647503694
H171: 1.69 | I171: 0.0647581297
H172: 1.7 | I172: 0.064765417
H173: 1.71 | I173: 0.064772259
H174: 1.72 | I174: 0.0647786817
H175: 1.73 | I175: 0.0647847098
H176: 1.74 | I176: 0.0647903667
H177: 1.75 | I177: 0.0647956744
H178: 1.76 | I178: 0.0648006536
H179: 1.77 | I179: 0.064805324
H180: 1.78 | I180: 0.0648097041
H181: 1.79 | I181: 0.0648138112
H182: 1.8 | I182: 0.0648176618
H183: 1.81 | I183: 0.0648212714
H184: 1.82 | I184: 0.0648246547
H185: 1.83 | I185: 0.0648278252
H186: 1.84 | I186: 0.0648307961
H187: 1.85 | I187: 0.0648335795
H188: 1.86 | I188: 0.0648361869
H189: 1.87 | I189: 0.0648386291
H190: 1.88 | I190: 0.0648409162
H191: 1.89 | I191: 0.0648430578
H192: 1.9 | I192: 0.064845063
H193: 1.91 | I193: 0.0648469402
H194: 1.92 | I194: 0.0648486973
H195: 1.93 | I195: 0.0648503418
H196: 1.94 | I196: 0.0648518808
H197: 1.95 | I197: 0.0648533208
H198: 1.96 | I198: 0.0648546681
H199: 1.97 | I199: 0.0648559285
H200: 1.98 | I200: 0.0648571074
... 172 more rows

Sheet Feuil3
